Workbook

Sheet Лист1
F1: «УТВЕРЖДАЮ»
F2: Директор ДЭиБПД
F3: АО «Коломенский Завод»
F4: ______________ Степанкевич В.С.
F7: от «___» ________ 2025_ г.
A9: Ведомость объемов работ Объект: «Реконструкция М-14 Инв. 530000149 ( устройство фасада)»
A11: № | B11: Вид работ | C11: Ед. измер | D11: Объем | E11: Формула расчета | F11: Примечание
B12: «Реконструкция М-14 Инв. 530000149 ( устройство фасада)»
A13: 1 | B13: Демонтаж существующих светильников массой 1,5кг каждый (для последующего монтажа) | C13: шт | D13: 6 | F13: на высоте 5м
A14: 2 | B14: Демонтаж оцинкованного короба 50х50 (для последующего монтажа) | C14: кг /м | D14: 255 / 132,6 | F14: вес 1мп=1,923кг
A15: 3 | B15: Демонтаж стеновых сэндвич-панелей толщ. 80мм (270шт.) | C15: м2 | D15: 2080 | F15: вес мусора=26,84кг*2080м2/1000=55,83т | G15: =55.83+1.053+0.324+0.72+3.2+1.44+4.39+64.56 -> 131.517
A16: 4 | B16: Разборка примыканий из 2-х слоев рубероида к парапетам высотой не менее 100мм | C16: м.п./м2 | D16: 270/27 | F16: вес мусора=270*0,5*0,78/100=1,053т
A17: 5 | B17: Демонтаж отливов парапета шириной 250мм | C17: м.п. | D17: 270 | F17: вес мусора=0,324т
A18: 6 | B18: Демонтаж металлических козырьков над воротами | C18: т | D18: 0.72 | F18: вес мусора=0,72т
A19: 7 | B19: Демонтаж металлических эвакуационных лестниц с ограждением | C19: шт / т | D19: 4 / 3,2 | F19: вес мусора=3,2т
A20: 8 | B20: Демонтаж кирпичной кладки | C20: м3 | D20: 0.8 | F20: вес мусора=1,8*0,8=1,44т
A21: 9 | B21: Демонтаж существующих алюминиевых оконных витражей: 82950х4790(h), S=267,0м2; 3030х1220(h), S=3,7м2; 2300х4790(h), S= 11,02м2; 9020х4790(h), S= 25,5м2; 2990х1230(h), S=3,68м2; 6770х4790(h), S= 32,43м2; 7540х4790(h), S=20,45м2; 6860х4790(h), S=32,86м2; 7590х4790(h), S= 20,2м2; 82510х4790(h), S=381,2м2. | C21: т / м2 | D21: 4,39 / 798,04 | F21: вес мусора=4,39т
A22: 10 | B22: Разборка асфальто-бетонной отмости толщ. 100мм шириной 1000мм | C22: м2 / м3 | D22: 269 / 26,9 | F22: вес мусора==26,9*2,4=64,56т
A23: 11 | B23: Выемка грунта 2 группы экскаваторами с ковшом вместимостью 0,5м3 под устройство новой отмостки с погрузкой | C23: м3 | D23: =88*0.97 -> 85.36
A24: 12 | B24: Разработка грунта вручную, группа грунтов: 2 | C24: м3 | D24: =88*0.03 -> 2.64
A25: 13 | B25: Погрузка грунта при разработке вручную | C25: м3 | D25: 2.64 | F25: 85,36+2,64=88м3
A26: 14 | B26: Погрузка мусора вручную | C26: т | D26: 13.1517
A27: 15 | B27: Погрузка мусора экскаватором | C27: т | D27: 118.3653
A28: 16 | B28: Перевозка металла автомобилями-самосвалами грузоподъемностью 10 т на расстояние до 1 км | C28: т | D28: 4.244 | F28: на территории заказчика 0,324т+0,72т+3,2т
A29: 17 | B29: Перевозка мусора автомобилями-самосвалами грузоподъемностью 10 т на расстояние до 47 км | C29: т | D29: =D26+D27+D25*1.75-D28 -> 131.893
A30: 18 | B30: Утилизация мусора | C30: т | D30: =D29 -> 131.893
B31: Устройство отмостки
A32: 19 | B32: Подсыпка песка с уплотнением ручными трамбовками | C32: м2 / м3 | D32: 269 / 53,8
A33: 20 | B33: Устройство отмостки из бетона B25 F200 W6 | C33: м3 | D33: 31
A34: 21 | B34: Устройство деформационных швов в отмостке | C34: м | D34: 312 | F34: Герметик силиконовый универсальный (Объем 1 шт. 310мл) – 104шт/32,24л Теплоизоляционный шнур типа Вилатерм (40мм) 312 м
A35: 22 | B35: Устройство вертикальной битумной гидроизоляции отмостки в 2 слоя | C35: м2 | D35: 135 | F35: Битумная мастика холодная ГОСТ 32870-2014 – 338кг
A36: 23 | B36: Установка бортового камня БР 100 20.8 на бетонное основание | C36: шт | D36: 273 | F36: Бетон кл. B25 F200 W6 ГОСТ 26633-2015 -15м3
B37: Ремонтно-восстановительные работы на фасаде
A38: 24 | B38: Устройство металлических лестниц заводской готовности | C38: т | D38: 3.2 | F38: Вес одной лестницы 800 кг. Общий вес 4 лестниц составляет 3,2 т
A39: 25 | B39: Устройство крепления лестниц | C39: т | D39: 0.18 | F39: уголок 75*6 С245 (5 креплений на 1 лестницу)
B40: Восстановление окраски металлоконструкций по оси "А" до отм.+7,05:
A41: 26 | B41: Очистка поверхности щетками | C41: м2 | D41: 125
A42: 27 | B42: Обеспыливание | C42: м2 | D42: 125
A43: 28 | B43: Обезжиривание уайт-спиритом | C43: м2 | D43: 125
A44: 29 | B44: Нанесение антикоррозионной защиты грунт-эмалью Prodecor 1202 | C44: м2 | D44: 125 | F44: расход 500гр/м2
A45: 30 | B45: Ремонт части стены толщиной 380мм из кирпича КРО 175/75 на цементном растворе М75 | C45: м2 / м3 | D45: 2,1 / 0,8
B46: Ремонт разрушенных участков кирпичных стен:
A47: 31 | B47: Очистка поверхности пескоструйным аппаратом, обеспыливание | C47: м2 | D47: 53
A48: 32 | B48: Обработка раствором медного купороса марки А от грибка и плесени | C48: м2 | D48: 53 | F48: расход 1кг/10м2
A49: 33 | B49: Нанесение грунтовки грубокого проникновения | C49: м2 | D49: 53
A50: 34 | B50: Ремонт штукатурного слоя 30 мм цементно-известковым раствором М100 морозостойкостью марки не менее F100 | C50: м2 | D50: 53
B51: Заделка трещин в кирпичных стенах: | F51: длина 4м, толщина 1мм
A52: 35 | B52: Очистка поверхности сжатым воздухом, | C52: м2 | D52: =4*0.001 -> 0.004
A53: 36 | B53: Заделка трещин в кирпичных стенах инъецированием полимерцементного раствора. При приготовлении полимерцементного раствора добавить 5% ПВА или латекса СКС65-ГП от веса цемента | C53: м | D53: 4 | F53: расход смеси 1,7 кг/м² на 1мм толщины | G53: какая толщина шва, сколько м2?
A54: 37 | B54: Монтаж каркаса металлического навеса из труб стальных квадратных, размер стороны 30мм, толщина стенки 3мм (0,3т) и проката листового толщиной 4мм (0,03т) | C54: т | D54: =0.3+0.03 -> 0.33 | F54: Трубы стальные квадратные. Сортамент по ГОСТ 8639-82 Тр. 30х30х3 -0,3т, Прокат листовой горячекатаный ГОСТ19903-2015 толщ. 4мм -0,03т
A55: 38 | B55: Монтаж кровельного покрытия навеса из профилированного листа полиэстер НС35-1000-0,6 | C55: т / м2 | D55: 0,1 / 15,63 | F55: нахлест 1,1
B56: Восстановление защитного покрытия металлических ворот и дверей:
A57: 39 | B57: Очистка поверхности щетками | C57: м2 | D57: 151
A58: 40 | B58: Обеспыливание | C58: м2 | D58: 151
A59: 41 | B59: Обезжиривание уайт-спиритом | C59: м2 | D59: 151
A60: 42 | B60: Нанесение антикоррозионной защиты грунт-эмалью Prodecor 1202 | C60: м2 | D60: 151 | F60: расход 500гр/м2
B61: Устройство стеновых панелей ПС1 (266шт), ПС2 (14шт), ПС3(14шт), ПС4 (14шт) в осях П-А на отм.от +5,91м до +14,06м
A62: 43 | B62: Монтаж металлических конструкций каркаса обшивки стен | C62: т | D62: 4.94 | F62: Профили стальные гнутые замкнутые сварные квадратные и прямоугольные для строительных конструкций по ГОСТ 30245-2012. Гн. 120х80х4 3,77т Уголки равнополочные по ГОСТ 8509-93 L75х6 0,77т Прокат листовой горячекатаный ГОСТ19903-2015 толщ. 10мм 0,07 т Прокат листовой горячекатаный ГОСТ19903-2015 толщ. 6мм 0,26т Прокат листовой горячекатаный ГОСТ19903-2015 толщ. 4мм 0,07 т
A63: 44 | B63: Монтаж стеновых панелей ПС1, ПС2 , ПС3, ПС4 | C63: м2 | D63: 2225.78 | F63: ТСП-Z-150-1190-Т-Т-МВ (ПЭ- RAL3012 -0.5/ПЭ- RAL9003-0.5) -1 кл. ГОСТ 32603-2021 L=5980мм- 1892,91 М2 (266 шт. х 1,19м х 5,980м) ТСП-Z-150-1190-Т-Т-МВ (ПЭ- RAL3012 -0.5/ПЭ- RAL9003-0.5) -1 кл. ГОСТ 32603-2021 L=7020мм -116,95 М2 (14 шт. х 1,19м х 7,020м) ТСП-Z-150-1190-Т-Т-МВ (ПЭ- RAL3012 -0.5/ПЭ- RAL9003-0.5) -1 кл. ГОСТ 32603-2021L=6660мм- 110,96 М2 (14 шт. х 1,19м х 6,660м) ТСП-Z-150-1190-Т-Т-МВ (ПЭ- RAL3012 -0.5/ПЭ- RAL9003-0.5) -1 кл. ГОСТ 32603-2021 L=6300мм- 104,96м2 (14 шт. х 1,19м х 6,300м) Самонарезающий шуруп 5,5х185 с ЭПДМ-прокладкой - 1850 Шт. Саморезы 4,8х28 с ЭПДМ-прокладкой 1500шт.
A64: 45 | B64: Установка фасонных элементов из оцинкованной стали А-О-0,5 ГОСТ 19904-90 с полимерным покрытием | C64: м2 | D64: 478.08
A65: 46 | B65: Заделка швов панелей герметиком | C65: м | D65: 1800 | F65: Герметик силиконовый универсальный (Объем 1 шт. 310мл)-300шт./93л
A66: 47 | B66: Заделка швов панелей уплотняющей лентой | C66: м | D66: 1800 | F66: Лента уплотняющая самоклеющая 3х50 -1800м
A67: 48 | B67: Устройство наплавляемых примыканий к существующей кровле, с утеплением плитами ПЖ-120 и герметизацией стыков | C67: м / м2 | D67: 283 / 141,5 | F67: Рулонный кровельный гидроизоляционный материал К-ПХ-БЭ-ПП/ПП-3,5 (или Техноэласт ЭПП) – 142 м2
A68: 49 | B68: Утепление примыканий плитами ПЖ-120 | C68: м2 / м3 | D68: 41/ 4,1 | F68: - Плита минераловатная ПЖ-120(НГ)-600.500.100 ГОСТ 9573-2012 -4,1 м3
A69: 50 | B69: Герметизацией стыков герметиком | C69: м | D69: 283 | F69: -Герметик силиконовый стойчивый к УФ-излучению (310мл) 60шт
A70: 51 | B70: Монтаж светильников (ранее демонтированных) на фасаде на закладных деталях на высоте 5м | C70: шт | D70: 6
A71: 52 | B71: Монтаж оцинкованного короба 50х50 (ранее демонтируемого) на высоте 5м с герметизацией швов | C71: кг /м | D71: 255 / 132,6 | F71: саморезы для крепления ∅4,8х19 с ЭПДМ-прокладкой - 600шт
A72: 53 | B72: Герметизация короба с двух сторон | C72: м | D72: 250 | F72: лента уплотняющая самоклеящаяся 3х50 - 250м
B73: Устройство вентфасада в осях П-А на отм. от 0,00м до +5,91м
A74: 54 | B74: Устройство утепления фасада | C74: м2 | D74: 656 | F74: плиты минераловатные ПТМ СТБ 1995-2009-Т4-DS(23,90)1-CS(10)10-TR5-WS1 λ=0.0406Вт/мС°, р=75кг/м3 толщ. 100мм
A75: 55 | B75: Зашивка фасада профилированным листом (сайдингом) | C75: м2 | D75: 706
B76: Устройство низа вентфасада (цоколя):
A77: 56 | B77: Устройство бетонной подготовки В3,5 F50 W2 | C77: м3 | D77: 2.5
A78: 57 | B78: Изоляция зкструзионным пенополистиролом 100мм XPS-T2-DS(70.90)-DLT(2)5-CS(10/Y)300-CC(2/1.5/50)100-WD(V)3-WL(T)-MU150-FT2 с креплением на клее холодных поверхностей: наружных стен | C78: м2 | D78: 62.5
B79: Усиление кладки на фасаде в осях П-А
A80: 58 | B80: Кладка отдельных участков кирпичных стен из кирпича на растворе М100 | C80: м3 | D80: 0.4
A81: 59 | B81: Усиление кладки методом установки анкеров в отверстия глубиной 300 мм с применением составов на цементно-эпоксидной основе | C81: шт | D81: 10
B82: Установка оконного остекления фасада
A83: 60 | B83: Устройство ПВХ оконных блоков с установкой креплений | C83: м2 | D83: 794.2 | F83: Оконные блоки Proplex-Basis 58мм 3х камерная система. Цвет профиля внешний белый, внутренний белый, заполнение стеклопакет 1-камерный 26мм
A84: 61 | B84: Установка оконных отливов | C84: м.п./м2 | D84: 208,7 / 63 | F84: Отливы RAL 7004 металл с полимерным покрытием
B88: Составил:
B90: Ведущий специалист ОпС АО "Коломенский Завод" | E90: Самойлов А.О.
B91: (должность) | E91: (подпись) (ФИО)
B92: "25" марта 2025 г.
B94: Проверил:
B95: Начальник отдела по строительству АО "Коломенский Завод"
B96: (должность) | E96: Губанов П.В.
B97: "25" марта 2025 г. | E97: (подпись) (ФИО)

Sheet Лист2
B6: 8.475 | C6: =(0.45*4) -> 1.8 | D6: =C6/0.2 -> 9 | E6: =(D6*B6)*2 -> 152.55
B7: 8.8 | C7: =24-(0.45*4) -> 22.2 | D7: =C7/0.2 -> 111 | E7: =(D7*B7)*2 -> 1953.6 | G7: =E7+E6 -> 2106.15
G8: =E9+E10 -> 2052.11875
B9: 5.575 | C9: =0.325 -> 0.325 | D9: =C9/0.2 -> 1.625 | E9: =(D9*B9)*2 -> 18.11875
B10: 24 | C10: =8.475 -> 8.475 | D10: =C10/0.2 -> 42.375 | E10: =(D10*B10)*2 -> 2034 | G10: 0.888 | H10: =((E6+E7+E9+E10)*G10)*0.001 -> 3.69254265
H14: =0.25*0.125*0.025 -> 0.00078125 | O14: =3.14*0.84 -> 2.6376
I16: =H14*61 -> 0.04765625 | O16: =0.125*4 -> 0.5
J17: =I16*3 -> 0.14296875
E18: 1 | F18: 0.2 | G18: =E18/F18 -> 5 | K18: =J17*2 -> 0.2859375 | O18: =O14*O16 -> 1.3188 | Q18: =O18*2 -> 2.6376
E19: 1 | F19: 0.2 | G19: =E19/F19 -> 5 | H19: =(G18+G19)*G10 -> 8.88
B25: =382060/19103 -> 20
B26: =477575/19103 -> 25
